bitfinex-derivatives/quotes_SOLF0:USTF0_20251025
["timestamp","ask_amount","ask_price","bid_price","bid_amount"]
[1761433930229,9.24178027,194.69,194.6,4.10598626]
[1761433930430,4.43984424,194.68,194.6,4.10598626]
[1761433931624,4.80193603,194.69,194.6,4.10598626]
[1761433932830,9.24078245,194.69,194.61,2.62]
[1761433933028,4.43884642,194.68,194.61,2.62]
[1761433933231,4.80193603,194.69,194.61,2.62]
[1761433933629,9.24078245,194.69,194.61,2.62]
[1761433933830,4.43884642,194.68,194.61,2.62]
[1761433934735,4.80193603,194.69,194.61,2.62]
[1761433935234,9.24078245,194.69,194.61,2.62]
[1761433935438,4.43884642,194.68,194.61,2.62]
[1761433935631,4.80193603,194.69,194.61,2.62]
[1761433936132,9.24078245,194.69,194.61,2.62]
[1761433936331,4.43884642,194.68,194.61,2.62]
[1761433936537,4.80193603,194.69,194.61,2.62]
[1761433937036,9.24078245,194.69,194.61,2.62]
[1761433937235,4.43884642,194.68,194.61,2.62]
[1761433937938,3.8842569,194.67,194.61,2.62]
[1761433938132,3.8842569,194.66,194.61,2.62]
[1761433938331,3.8842569,194.65,194.61,2.62]
[1761433938538,4.43797963,194.68,194.61,2.62]
[1761433938727,3.88414026,194.67,194.61,2.62]
[1761433938933,3.88414026,194.66,194.61,2.62]
[1761433939130,3.88414026,194.65,194.61,2.62]
[1761433939335,4.43797963,194.68,194.61,2.62]
[1761433939537,3.88403877,194.67,194.61,2.62]
[1761433939743,3.88403877,194.66,194.61,2.62]
[1761433940042,3.88403877,194.65,194.61,2.62]
[1761433940242,4.43797963,194.68,194.61,2.62]
[1761433940540,3.88395193,194.67,194.61,2.62]
[1761433940743,3.88395193,194.66,194.61,2.62]
[1761433940946,3.88395193,194.65,194.61,2.62]
[1761433941243,4.4425714,194.68,194.61,2.62]
[1761433941443,3.88387935,194.67,194.61,2.62]
[1761433941643,3.88387935,194.66,194.61,2.62]
[1761433941847,3.88387935,194.65,194.59,2.62]
[1761433942047,3.88387935,194.64,194.61,1.48598626]
[1761433942239,4.44267336,194.68,194.62,2.62]
[1761433942440,3.88382018,194.67,194.62,2.62]
[1761433942739,3.88382018,194.66,194.62,2.62]
[1761433942939,3.88382018,194.65,194.62,2.62]
[1761433943136,4.44267336,194.68,194.62,2.62]
[1761433943341,3.88379612,194.67,194.62,2.62]
[1761433943545,3.88379612,194.66,194.62,2.62]
[1761433943844,3.88379612,194.65,194.62,2.62]
[1761433944040,4.44267336,194.68,194.62,2.62]
[1761433944244,3.88379612,194.67,194.62,2.62]
[1761433944442,3.88379612,194.66,194.62,2.62]
[1761433944742,3.88379612,194.65,194.62,2.62]
[1761433945045,4.44231267,194.69,194.62,2.62]
[1761433945240,3.88373709,194.68,194.62,2.62]
[1761433945445,3.88373709,194.67,194.62,2.62]
[1761433945647,3.88373709,194.66,194.62,2.62]
[1761433945837,3.88373709,194.65,194.62,2.62]
[1761433946038,4.44231267,194.69,194.62,2.62]
[1761433946240,3.88353571,194.68,194.62,2.62]
[1761433946548,3.88353571,194.67,194.62,2.62]
[1761433946745,3.88353571,194.66,194.62,2.62]
[1761433946946,3.88353571,194.65,194.62,2.62]
[1761433947143,4.44231267,194.69,194.62,2.62]
[1761433947344,3.88350884,194.68,194.62,2.62]
[1761433947544,3.88350884,194.67,194.62,2.62]
[1761433947744,3.88350884,194.66,194.62,2.62]
[1761433947945,3.88350884,194.65,194.62,2.62]
[1761433948150,5.92829893,194.69,194.62,2.62]
[1761433948351,3.88350972,194.68,194.62,2.62]
[1761433948544,3.88350972,194.67,194.62,2.62]
[1761433948841,3.88350972,194.66,194.62,2.62]
[1761433949039,3.88350972,194.65,194.62,2.62]
[1761433949242,5.92829893,194.69,194.62,2.62]
[1761433949441,3.8835428,194.68,194.62,2.62]
[1761433949638,3.8835428,194.67,194.62,2.62]
[1761433949853,3.8835428,194.66,194.62,2.62]
[1761433950054,3.8835428,194.65,194.62,2.62]
[1761433950351,5.92829893,194.69,194.62,2.62]
[1761433950553,3.88366985,194.68,194.62,2.62]
[1761433950742,3.88366985,194.67,194.62,2.62]
[1761433950943,3.88366985,194.66,194.62,2.62]
[1761433951152,3.88366985,194.65,194.62,2.62]
[1761433951348,5.92829893,194.69,194.62,2.62]
[1761433951552,3.8837907,194.68,194.62,2.62]
[1761433951748,3.8837907,194.67,194.62,2.62]
[1761433951948,1.48598626,194.69,194.62,2.62]
[1761433951949,3.8837907,194.66,194.62,2.62]
[1761433952149,3.8837907,194.65,194.62,2.62]
[1761433952447,5.92829893,194.69,194.62,2.62]
[1761433952644,3.88384032,194.68,194.62,2.62]
[1761433952849,1.48598626,194.69,194.62,2.62]
[1761433952850,3.88384032,194.67,194.62,2.62]
[1761433953050,3.88384032,194.66,194.62,2.62]
[1761433953250,3.88384032,194.65,194.62,2.62]
[1761433953445,5.92829893,194.69,194.62,2.62]
[1761433953648,3.88397853,194.68,194.62,2.62]
[1761433953844,3.88397853,194.67,194.62,2.62]
[1761433954048,3.88397853,194.66,194.62,2.62]
[1761433954355,3.88397853,194.65,194.62,2.62]
[1761433954555,5.92829893,194.69,194.62,2.62]
[1761433954755,3.8842124,194.68,194.62,2.62]
[1761433955052,3.8842124,194.67,194.62,2.62]
[1761433955251,6.28792229,194.72,194.62,2.62]
[1761433955458,3.88387477,194.71,194.62,2.62]
[1761433955651,6.28792229,194.72,194.62,2.62]
[1761433955652,3.88387477,194.7,194.62,2.62]
[1761433955852,3.88387477,194.69,194.62,2.62]
[1761433956055,3.88387477,194.68,194.62,2.62]
[1761433956256,3.88387477,194.67,194.62,2.62]
[1761433956456,4.44271851,194.71,194.62,2.62]
[1761433956757,3.8836994,194.7,194.62,2.62]
[1761433957056,3.8836994,194.69,194.62,2.62]
[1761433957256,4.44271851,194.71,194.62,2.62]
[1761433957257,3.8836994,194.68,194.62,2.62]
[1761433957456,4.44271851,194.71,194.62,2.62]
[1761433957658,3.88365401,194.7,194.62,2.62]
[1761433957858,3.88365401,194.69,194.65,2.62]
[1761433958058,4.80193603,194.73,194.65,2.62]
[1761433958059,4.44188403,194.72,194.65,2.62]
[1761433958257,3.88334471,194.71,194.65,2.62]
[1761433958458,3.88334471,194.7,194.65,2.62]
[1761433958673,4.44188403,194.72,194.65,2.62]
[1761433958674,3.88334471,194.69,194.65,2.62]
[1761433958861,4.44188403,194.72,194.65,2.62]
[1761433959054,3.88311358,194.71,194.65,2.62]
[1761433959252,4.44188403,194.72,194.65,2.62]
[1761433959253,3.88311358,194.7,194.65,2.62]
[1761433959453,3.88311358,194.69,194.65,2.62]
[1761433959658,5.92787029,194.72,194.65,2.62]
[1761433959961,3.88285321,194.71,194.65,2.62]
[1761433960162,3.88285321,194.7,194.65,2.62]
[1761433960363,3.88285321,194.69,194.65,2.62]
[1761433960564,1.48598626,194.72,194.65,2.62]
[1761433960764,3.88285521,194.71,194.65,2.62]
[1761433961065,3.88285521,194.7,194.65,2.62]
[1761433961266,3.88285521,194.69,194.65,2.62]
[1761433961465,5.92747752,194.72,194.65,2.62]
[1761433961662,3.88270721,194.71,194.65,2.62]
[1761433961859,3.88270721,194.7,194.65,2.62]
[1761433962065,3.88270721,194.69,194.65,2.62]
[1761433962264,5.92747752,194.72,194.65,2.62]
[1761433962456,3.88300645,194.71,194.65,2.62]
[1761433962660,3.88300645,194.7,194.65,2.62]
[1761433962867,3.88300645,194.69,194.65,2.62]
[1761433963067,5.92747752,194.72,194.65,2.62]
[1761433963260,3.88306334,194.71,194.65,2.62]
[1761433963456,3.88306334,194.7,194.65,2.62]
[1761433963664,3.88306334,194.69,194.65,2.62]
[1761433963866,5.92747752,194.72,194.65,2.62]
[1761433964067,3.88306334,194.71,194.65,2.62]
[1761433964256,3.88306334,194.7,194.65,2.62]
[1761433964461,3.88306334,194.69,194.65,2.62]
[1761433964760,5.92747752,194.72,194.65,2.62]
[1761433964957,3.88349675,194.71,194.65,2.62]
[1761433965261,3.88349675,194.7,194.65,2.62]
[1761433965468,3.88349675,194.69,194.65,2.62]
[1761433965762,5.92797416,194.72,194.65,2.62]
[1761433965962,3.88324388,194.71,194.65,2.62]
[1761433966164,3.88324388,194.7,194.65,2.62]
[1761433966369,3.88324388,194.69,194.65,2.62]
[1761433966668,3.88326457,194.68,194.65,2.62]
[1761433966869,5.92797416,194.72,194.65,2.62]
[1761433967070,3.88326457,194.71,194.65,2.62]
[1761433967264,3.88326457,194.7,194.65,2.62]
[1761433967462,3.88326457,194.69,194.65,2.62]
[1761433967662,3.88326457,194.68,194.65,2.62]
[1761433967959,5.92797416,194.72,194.65,2.62]
[1761433968158,3.88304725,194.71,194.65,2.62]
[1761433968369,3.88304725,194.7,194.65,2.62]
[1761433968569,4.4419879,194.73,194.65,2.62]
[1761433968766,3.88254083,194.72,194.65,2.62]
[1761433969070,3.88254083,194.71,194.65,2.62]
[1761433969263,3.88254083,194.7,194.65,2.62]
[1761433969462,4.4419879,194.73,194.65,2.62]
[1761433969669,3.88206587,194.72,194.65,2.62]
[1761433969967,3.88206587,194.71,194.65,2.62]
[1761433970168,3.88206587,194.7,194.65,2.62]
[1761433970363,4.44585892,194.73,194.65,2.62]
[1761433970570,3.88163929,194.72,194.65,2.62]
[1761433970768,3.88163929,194.71,194.65,2.62]
[1761433970969,3.88163929,194.7,194.65,2.62]
[1761433971272,6.28792229,194.74,194.65,2.62]
[1761433971469,3.88130054,194.73,194.65,2.62]
[1761433971666,3.88130054,194.72,194.65,2.62]
[1761433971866,3.88130054,194.71,194.65,2.62]
[1761433972169,3.88130054,194.7,194.65,2.62]
[1761433972367,1.48598626,194.74,194.65,2.62]
[1761433972568,3.88095821,194.73,194.65,2.62]
[1761433972769,3.88095821,194.72,194.65,2.62]
[1761433973069,3.88095821,194.71,194.65,2.62]
[1761433973268,3.88095821,194.7,194.65,2.62]
[1761433973469,5.93057265,194.74,194.65,2.62]
[1761433973674,3.88065139,194.73,194.65,2.62]
[1761433973871,3.88065139,194.72,194.65,2.62]
[1761433974075,3.88065139,194.71,194.65,2.62]
[1761433974274,3.88065139,194.7,194.65,2.62]
[1761433974573,5.93057265,194.74,194.65,2.62]
[1761433974776,3.88031383,194.73,194.66,2.83]
[1761433974975,3.88031383,194.72,194.66,2.83]
[1761433975175,3.88031383,194.71,194.66,2.83]
[1761433975474,1.48598626,194.75,194.66,2.83]
[1761433975677,3.87618493,194.74,194.67,2.83]
[1761433975875,3.87618493,194.73,194.67,2.83]
[1761433976075,3.87618493,194.72,194.67,2.83]
[1761433976277,5.92846429,194.75,194.67,2.83]
[1761433976474,3.87557255,194.74,194.67,2.83]
[1761433976678,3.87557255,194.73,194.67,2.83]
[1761433976879,3.87557255,194.72,194.67,2.83]
[1761433977074,1.48598626,194.75,194.67,2.83]
[1761433977282,3.87557255,194.74,194.67,2.83]
[1761433977480,3.87557255,194.73,194.67,2.83]
[1761433977680,3.87557255,194.72,194.67,2.83]
[1761433977882,1.48598626,194.75,194.67,2.83]
[1761433978079,3.8751416,194.74,194.67,2.83]
[1761433978280,3.8751416,194.73,194.67,2.83]
[1761433978581,3.8751416,194.72,194.67,2.83]
[1761433978782,1.48598626,194.75,194.67,2.83]
[1761433978985,3.87478079,194.74,194.67,2.83]
[1761433979281,1.48598626,194.72,194.67,2.83]
[1761433981183,1.48598626,194.72,194.67,4.6225]
[1761433981390,1.48598626,194.72,194.68,2.63]
[1761433982682,6.19491029,194.76,194.68,2.63]
[1761433982881,3.87385364,194.75,194.68,2.63]
[1761433983089,3.87385364,194.74,194.68,2.63]
[1761433983289,2.32105665,194.76,194.68,2.63]
[1761433983491,3.87349204,194.75,194.68,2.63]
[1761433983790,3.87349204,194.74,194.68,2.63]
[1761433984091,3.87349204,194.73,194.68,2.63]
[1761433984293,3.87349204,194.75,194.68,2.63]
[1761433984486,3.87349204,194.74,194.68,2.63]
[1761433984792,3.87349204,194.73,194.68,2.63]
[1761433984989,3.87349204,194.75,194.68,2.63]
[1761433985186,3.87349204,194.74,194.68,2.63]
[1761433985387,3.87349204,194.73,194.68,2.63]
[1761433985584,6.76353468,194.76,194.68,2.63]
[1761433985784,3.87327924,194.75,194.68,2.63]
[1761433985984,3.87327924,194.74,194.68,2.63]
[1761433986191,3.87327924,194.73,194.68,2.63]
[1761433986387,6.76353468,194.76,194.68,2.63]
[1761433986689,3.87327282,194.75,194.68,2.63]
[1761433986988,3.87327282,194.74,194.68,2.63]
[1761433987186,3.87327282,194.73,194.68,2.63]
[1761433987378,6.76353468,194.76,194.68,2.63]
[1761433987580,3.8735472,194.75,194.68,2.63]
[1761433987782,3.8735472,194.74,194.68,2.63]
[1761433987990,3.8735472,194.73,194.68,2.63]
[1761433988194,6.76353468,194.76,194.68,2.63]
[1761433988385,3.87375617,194.75,194.68,2.63]
[1761433988580,3.87375617,194.74,194.68,2.63]
[1761433988787,3.87375617,194.73,194.68,2.63]
[1761433988992,6.76353468,194.76,194.68,2.63]
[1761433989192,3.87375617,194.75,194.68,2.63]
[1761433989382,3.87375617,194.74,194.68,2.63]
[1761433989586,3.87375617,194.73,194.68,2.63]
[1761433989789,3.87375617,194.72,194.68,2.63]
[1761433989985,3.87375617,194.75,194.68,2.63]
[1761433990190,3.87375617,194.74,194.68,2.63]
[1761433990392,3.87375617,194.73,194.68,2.63]
[1761433990593,6.76353468,194.76,194.68,2.63]
[1761433990793,3.87417971,194.75,194.68,2.63]
[1761433990992,3.87417971,194.74,194.68,2.63]
[1761433991190,3.87417971,194.73,194.68,2.63]
[1761433991392,6.76353468,194.76,194.68,2.63]
[1761433991692,3.87445464,194.75,194.68,2.63]
[1761433991891,3.87445464,194.74,194.68,2.63]
[1761433992096,3.87445464,194.73,194.68,2.63]
[1761433992298,3.87445464,194.72,194.68,2.63]
[1761433992490,6.76353468,194.76,194.68,2.63]
[1761433992695,3.87479232,194.75,194.68,2.63]
[1761433992894,3.87479232,194.74,194.68,2.63]
[1761433993095,3.87479232,194.73,194.68,2.63]
[1761433993295,3.87479232,194.72,194.68,2.63]
[1761433993598,6.76353468,194.76,194.68,2.63]
[1761433993795,3.87519754,194.75,194.68,2.63]
[1761433993997,3.87519754,194.74,194.68,2.63]
[1761433994297,3.87519754,194.73,194.68,2.63]
[1761433994496,3.87519754,194.72,194.68,2.63]
[1761433994698,6.76353468,194.76,194.68,2.63]
[1761433994897,3.87567618,194.75,194.68,2.63]
[1761433995095,3.87567618,194.74,194.68,2.63]
[1761433995297,3.87567618,194.73,194.68,2.63]
[1761433995595,3.87567618,194.72,194.68,2.63]
[1761433995801,6.76353468,194.76,194.68,2.63]
[1761433996100,3.87623842,194.75,194.68,2.63]
[1761433996296,3.87623842,194.74,194.68,2.63]
[1761433996496,3.87623842,194.73,194.68,2.63]
[1761433996800,3.87623842,194.72,194.68,2.63]
[1761433997002,6.76353468,194.76,194.68,2.63]
[1761433997201,3.87689512,194.75,194.68,2.63]
[1761433997501,3.87689512,194.74,194.68,2.63]
[1761433997801,3.87689512,194.73,194.68,2.63]
[1761433998099,3.87689512,194.72,194.68,2.63]
[1761433998301,4.44247803,194.75,194.68,2.63]
[1761433998500,3.87849979,194.74,194.68,2.63]
[1761433998699,3.87849979,194.73,194.68,2.63]
[1761433998901,3.87849979,194.72,194.68,2.63]
[1761433999203,3.87950141,194.71,194.68,2.63]
[1761433999403,4.44247803,194.75,194.68,2.63]
[1761433999698,3.87950141,194.74,194.68,2.63]
[1761433999898,3.87950141,194.73,194.68,2.63]
[1761434000096,3.87950141,194.72,194.68,2.63]
[1761434000297,3.87950141,194.71,194.68,2.63]
[1761434000498,4.44247803,194.74,194.68,2.63]
[1761434000699,3.87994127,194.73,194.68,2.63]
[1761434000899,3.87994127,194.72,194.68,2.63]
[1761434001201,3.87994127,194.71,194.68,2.63]
[1761434001402,4.44247803,194.75,194.68,2.63]
[1761434001604,3.88024219,194.74,194.68,2.63]
[1761434001802,3.88024219,194.73,194.68,2.63]
[1761434002003,3.88024219,194.72,194.68,2.63]
[1761434002203,3.88024219,194.71,194.68,2.63]
[1761434002405,4.44247803,194.75,194.68,2.63]
[1761434002702,3.8805996,194.74,194.68,2.63]
[1761434002902,3.8805996,194.73,194.68,2.63]
[1761434003103,3.8805996,194.72,194.68,2.63]
[1761434003305,3.8805996,194.71,194.68,2.63]
[1761434003500,4.47549291,194.75,194.68,2.63]
[1761434003695,3.8806804,194.74,194.68,2.63]
[1761434003901,3.8806804,194.73,194.68,2.63]
[1761434004198,3.8806804,194.72,194.68,2.63]
[1761434004394,3.8806804,194.71,194.68,2.63]
[1761434004602,4.47549291,194.75,194.68,2.63]
[1761434004808,3.88083997,194.74,194.68,2.63]
[1761434005104,3.88083997,194.73,194.68,2.63]
[1761434005306,3.88083997,194.72,194.68,2.63]
[1761434005608,3.88083997,194.71,194.68,2.63]
[1761434005806,4.47549291,194.75,194.68,2.63]
[1761434006005,3.8733545,194.74,194.68,2.63]
[1761434006205,3.8733545,194.73,194.68,2.63]
[1761434006406,3.8733545,194.72,194.68,2.63]
[1761434006598,3.8733545,194.71,194.68,2.63]
[1761434006802,4.47549291,194.75,194.68,2.63]
[1761434006998,3.87352394,194.74,194.68,2.63]
[1761434007201,3.87352394,194.73,194.68,2.63]
[1761434007402,3.87352394,194.72,194.68,2.63]
[1761434007601,3.87352394,194.71,194.68,2.63]
[1761434007802,4.4764353,194.74,194.68,2.63]
[1761434008009,3.87379296,194.73,194.68,2.63]
[1761434008211,3.87379296,194.72,194.68,2.63]
[1761434008508,3.8740145,194.71,194.68,2.63]
[1761434008703,7.12672786,194.76,194.68,2.63]
[1761434008704,4.47668851,194.75,194.68,2.63]
[1761434008909,8.35070301,194.74,194.68,2.63]
[1761434009111,3.8740145,194.73,194.68,2.63]
[1761434009311,3.8740145,194.72,194.68,2.63]
[1761434009502,3.8740145,194.71,194.68,2.63]
[1761434009703,7.12672786,194.76,194.68,2.63]
[1761434009909,13.15705174,194.75,194.68,2.63]
[1761434010110,8.35138053,194.74,194.68,2.63]
[1761434010410,3.8743157,194.73,194.68,2.63]
[1761434010710,3.8743157,194.72,194.68,2.63]
[1761434010909,3.8743157,194.71,194.68,2.63]
[1761434011111,4.47706483,194.74,194.68,2.63]
[1761434011308,3.87519219,194.73,194.68,2.63]
[1761434011509,3.87519219,194.72,194.68,2.63]
[1761434011809,2.32105665,194.76,194.68,2.63]
[1761434012007,3.87467026,194.75,194.68,2.63]
[1761434012212,3.87467026,194.74,194.68,2.63]
[1761434012407,3.87467026,194.73,194.68,2.63]
[1761434012605,3.87467026,194.72,194.68,2.63]
[1761434012806,3.94977531,194.71,194.68,2.63]
[1761434013104,11.48139855,194.76,194.68,2.63]
[1761434013105,7.12672786,194.76,194.68,2.63]
[1761434013305,3.95029791,194.75,194.68,2.63]
[1761434013613,3.95029791,194.74,194.68,2.63]
[1761434013811,3.95029791,194.73,194.68,2.63]
[1761434014012,3.95029791,194.72,194.68,2.63]
[1761434014210,3.95029791,194.71,194.68,2.63]
[1761434014415,7.12672786,194.76,194.68,2.63]
[1761434014615,3.95035598,194.75,194.68,2.63]
[1761434014809,3.95035598,194.74,194.68,2.63]
[1761434015115,3.95035598,194.73,194.68,2.63]
[1761434015313,3.95035598,194.72,194.68,2.63]
[1761434015514,7.12672786,194.76,194.68,2.63]
[1761434015515,3.95035598,194.71,194.68,2.63]
[1761434015714,7.12672786,194.76,194.68,2.63]
[1761434015916,3.95046249,194.75,194.68,2.63]
[1761434016114,3.95046249,194.74,194.68,2.63]
[1761434016415,3.95046249,194.73,194.68,2.63]
[1761434016612,3.95046249,194.72,194.68,2.63]
[1761434016815,3.95046249,194.71,194.68,2.63]
[1761434017017,7.12672786,194.76,194.68,2.63]
[1761434017212,3.95070218,194.75,194.68,2.63]
[1761434017412,3.95070218,194.74,194.68,2.63]
[1761434017712,3.95070218,194.73,194.68,2.63]
[1761434017912,3.95070218,194.72,194.68,2.63]
[1761434018112,3.95070218,194.71,194.68,2.63]
[1761434018414,7.12672786,194.76,194.68,2.63]
[1761434018616,3.95126308,194.75,194.68,2.63]
[1761434018815,3.95126308,194.74,194.68,2.63]
[1761434019115,3.95126308,194.73,194.68,2.63]
[1761434019413,3.95126308,194.72,194.68,2.63]
[1761434019617,3.95126308,194.71,194.68,2.63]
[1761434019815,7.12672786,194.76,194.68,2.63]
[1761434020020,3.95148403,194.75,194.68,2.63]
[1761434020316,3.95148403,194.74,194.68,2.63]
[1761434020517,3.95148403,194.73,194.68,2.63]
[1761434020817,3.95148403,194.72,194.68,2.63]
[1761434021016,3.95148403,194.71,194.68,2.63]
[1761434021217,3.95148403,194.7,194.68,2.63]
[1761434021418,4.80567121,194.75,194.68,2.63]
[1761434021620,4.01273617,194.74,194.68,2.63]
[1761434021811,4.01273617,194.73,194.68,2.63]
[1761434022012,0.16180829,194.72,194.68,2.63]
[1761434022220,4.80567121,194.75,194.68,2.63]
[1761434023018,4.57626683,194.74,194.68,2.63]
[1761434023207,4.80567121,194.75,194.68,2.63]
[1761434023414,4.57616964,194.74,194.68,2.63]
[1761434023616,4.80567121,194.75,194.68,2.63]
[1761434023815,4.57610495,194.74,194.68,2.63]
[1761434024018,4.80567121,194.75,194.68,2.63]
[1761434024324,4.57619686,194.74,194.68,2.63]
[1761434024516,4.80567121,194.75,194.68,2.63]
[1761434024721,4.57620331,194.74,194.68,2.63]
[1761434024921,4.80567121,194.75,194.68,2.63]
[1761434025121,9.24867203,194.75,194.68,2.63]
[1761434029029,4.80567121,194.74,194.68,2.63]
[1761434029416,4.80567121,194.73,194.68,2.63]
[1761434029626,7.12672786,194.73,194.65,2.77]
[1761434030021,2.32105665,194.73,194.65,2.77]
[1761434030522,11.57465016,194.73,194.65,2.77]
[1761434030724,7.12672786,194.73,194.65,2.77]
[1761434030923,9.25383942,194.72,194.62,7.3937]
[1761434031231,2.32105665,194.7,194.62,2.77]
[1761434032530,4.80567121,194.72,194.62,2.77]
[1761434032725,4.66570747,194.71,194.62,2.77]
[1761434032926,4.66570747,194.7,194.62,2.77]
[1761434033131,4.80567121,194.72,194.62,2.77]
[1761434033331,4.66570747,194.71,194.62,2.77]
[1761434033530,4.66570747,194.7,194.62,2.77]
[1761434033832,4.80567121,194.72,194.62,2.77]
[1761434034033,8.70690937,194.71,194.63,2.77]
[1761434034234,8.70690937,194.7,194.63,2.77]
[1761434034438,4.04171153,194.69,194.63,2.77]
[1761434034628,0.19043338,194.68,194.63,2.77]
[1761434034828,4.66484908,194.7,194.63,2.77]
[1761434035029,4.80567121,194.72,194.63,2.77]
[1761434035232,4.66484908,194.71,194.63,2.77]
[1761434035533,4.66484908,194.7,194.63,2.77]
[1761434035725,4.80567121,194.72,194.63,2.77]
[1761434035935,4.66468149,194.71,194.63,2.77]
[1761434036131,4.66468149,194.7,194.63,2.77]
[1761434036335,4.66477053,194.69,194.56,2.77]
[1761434036530,4.66477053,194.68,194.56,2.77]
[1761434036731,7.12672786,194.7,194.56,2.77]
[1761434037039,9.4701979,194.69,194.56,2.77]
[1761434037234,9.4701979,194.68,194.56,2.77]
[1761434037539,4.66452669,194.67,194.56,2.77]
[1761434037736,4.80567121,194.68,194.56,2.77]
[1761434038039,4.66347088,194.67,194.58,2.77]
[1761434038241,4.80567121,194.69,194.58,2.77]
[1761434038537,9.46750845,194.68,194.58,2.77]
[1761434038733,4.66183724,194.67,194.58,2.77]
[1761434038934,4.80567121,194.68,194.58,2.77]
[1761434039135,4.66183827,194.67,194.58,2.77]
[1761434039341,4.66170703,194.68,194.58,2.77]
[1761434039639,4.80567121,194.69,194.58,2.77]
[1761434039840,4.66062601,194.68,194.58,2.77]
[1761434040136,4.80567121,194.65,194.56,2.77]
[1761434040438,4.66103537,194.64,194.56,2.77]
[1761434041139,4.80567121,194.65,194.56,2.77]
[1761434041336,4.80567121,194.66,194.56,2.77]
[1761434041538,4.80567121,194.67,194.56,2.77]
[1761434041740,4.65791864,194.66,194.56,2.77]
[1761434042042,4.80567121,194.67,194.56,2.77]
[1761434042240,4.65791537,194.66,194.56,2.77]
[1761434042536,4.65791537,194.65,194.56,2.77]
[1761434042734,4.65791537,194.65,194.57,2.81]
[1761434043443,9.46358658,194.66,194.57,2.81]
[1761434044946,9.46358658,194.65,194.57,2.81]
[1761434045141,4.65791537,194.64,194.57,2.81]
[1761434045335,9.46358658,194.66,194.57,2.81]
[1761434046347,4.65791537,194.65,194.57,2.81]
[1761434046644,4.09212755,194.64,194.57,2.81]
[1761434046842,4.09212755,194.63,194.57,2.81]
[1761434047045,4.09212755,194.62,194.57,2.81]
[1761434047247,4.6485736,194.65,194.57,2.81]
[1761434047443,4.09054831,194.64,194.57,2.81]
[1761434047745,4.09054831,194.63,194.57,2.81]
[1761434047947,4.09054831,194.62,194.57,2.81]
[1761434048244,6.27629762,194.67,194.57,2.81]
[1761434048445,4.08919394,194.66,194.57,2.81]
[1761434048646,4.08919394,194.65,194.57,2.81]
[1761434048944,4.08919394,194.64,194.57,2.81]
[1761434049145,4.08919394,194.63,194.57,2.81]
[1761434049444,4.08919394,194.62,194.57,2.81]
[1761434049635,4.64537896,194.65,194.57,2.81]
[1761434049838,4.08809109,194.64,194.57,2.81]
[1761434050047,4.08809109,194.63,194.57,2.81]
[1761434050344,4.08809109,194.62,194.57,2.81]
[1761434050539,6.27629762,194.67,194.57,2.81]
[1761434050739,1.4868887,194.65,194.57,2.81]
[1761434050934,4.08686036,194.64,194.57,2.81]
[1761434051144,4.08686036,194.63,194.57,2.81]
[1761434051340,1.4868887,194.65,194.57,2.81]
[1761434051539,4.08590632,194.64,194.57,2.81]
[1761434051744,4.08590632,194.63,194.57,2.81]
[1761434052045,1.4868887,194.65,194.57,2.81]
[1761434052246,4.08533151,194.64,194.57,2.81]
[1761434052453,4.08533151,194.63,194.57,2.81]
[1761434052741,1.4868887,194.65,194.57,2.81]
[1761434052742,4.08533151,194.64,194.57,2.81]
[1761434052951,4.08533151,194.63,194.57,2.81]